[Event "*** Titled Tuesday Blitz"]
[Site "Chess.com"]
[Date "2020.12.01"]
[Round "10"]
[White "jacky72"]
[Black "AryanTari"]
[Result "0-1"]
[WhiteElo "2719"]
[BlackElo "2905"]
[TimeControl "180+1"]
[EndTime "11:57:18 PST"]
[Termination "AryanTari won by resignation"]

1. d4 {[%clk 0:03:00.9]} 1... Nf6 {[%clk 0:02:58.7]} 2. c4 {[%clk 0:03:01.1]}
2... b6 {[%clk 0:02:59.1]} 3. Nf3 {[%clk 0:03:00.3]} 3... Bb7 {[%clk 0:02:58.5]}
4. g3 {[%clk 0:03:00.8]} 4... g6 {[%clk 0:02:48.7]} 5. Bg2 {[%clk 0:03:00.9]}
5... Bg7 {[%clk 0:02:49.3]} 6. O-O {[%clk 0:03:01.5]} 6... O-O {[%clk 0:02:50]}
7. b3 {[%clk 0:03:02.1]} 7... c5 {[%clk 0:02:47.2]} 8. d5 {[%clk 0:03:02]} 8...
Nxd5 {[%clk 0:02:46.8]} 9. cxd5 {[%clk 0:02:57.7]} 9... Bxa1 {[%clk 0:02:46.8]}
10. Bg5 {[%clk 0:02:48.7]} 10... Bf6 {[%clk 0:02:42.4]} 11. Bh6 {[%clk
0:02:45.4]} 11... Bg7 {[%clk 0:02:42.3]} 12. Bxg7 {[%clk 0:02:45.3]} 12... Kxg7
{[%clk 0:02:43.2]} 13. e4 {[%clk 0:02:45.4]} 13... d6 {[%clk 0:02:42.1]} 14. h4
{[%clk 0:02:45.1]} 14... e5 {[%clk 0:02:40.8]} 15. dxe6 {[%clk 0:02:42.6]} 15...
fxe6 {[%clk 0:02:40.9]} 16. Ng5 {[%clk 0:02:43.1]} 16... Qe7 {[%clk 0:02:37]}
17. e5 {[%clk 0:02:43.6]} 17... d5 {[%clk 0:02:27.2]} 18. Bh3 {[%clk 0:02:43.8]}
18... Bc8 {[%clk 0:02:27.4]} 19. f4 {[%clk 0:02:44.2]} 19... Nc6 {[%clk
0:02:25.5]} 20. h5 {[%clk 0:02:43.8]} 20... Bd7 {[%clk 0:02:11.1]} 21. hxg6
{[%clk 0:02:43.2]} 21... hxg6 {[%clk 0:02:11.1]} 22. Qg4 {[%clk 0:02:33.9]}
22... Nd4 {[%clk 0:02:08.6]} 23. Nd2 {[%clk 0:02:29.2]} 23... Rh8 {[%clk
0:02:00.3]} 24. Ndf3 {[%clk 0:02:24]} 24... Nf5 {[%clk 0:02:00.3]} 25. Nh4
{[%clk 0:02:24.2]} 25... Rxh4 {[%clk 0:01:43.8]} 26. gxh4 {[%clk 0:02:22.7]}
26... Rh8 {[%clk 0:01:44.5]} 27. Qe2 {[%clk 0:02:11.8]} 27... Ng3 {[%clk
0:01:31.6]} 28. Qg4 {[%clk 0:02:05.6]} 28... Nxf1 {[%clk 0:01:31.9]} 29. Bxf1
{[%clk 0:02:04.9]} 29... Qf8 {[%clk 0:01:28.9]} 30. Bd3 {[%clk 0:02:04.8]} 30...
Qe8 {[%clk 0:01:14.7]} 31. Nf3 {[%clk 0:01:46.3]} 31... b5 {[%clk 0:01:12.3]}
32. h5 {[%clk 0:01:38.5]} 32... Rxh5 {[%clk 0:01:06.2]} 33. Nh4 {[%clk
0:01:38.9]} 33... Rh6 {[%clk 0:00:56]} 34. Kf2 {[%clk 0:01:17.2]} 34... Qf7
{[%clk 0:00:50.2]} 35. Kg3 {[%clk 0:01:16.8]} 35... c4 {[%clk 0:00:49.9]} 36.
Bc2 {[%clk 0:01:16.8]} 36... d4 {[%clk 0:00:43.2]} 37. Be4 {[%clk 0:01:16.4]}
37... d3 {[%clk 0:00:43.4]} 38. Nf3 {[%clk 0:01:16.2]} 38... Qe7 {[%clk
0:00:34.4]} 39. bxc4 {[%clk 0:01:12]} 39... bxc4 {[%clk 0:00:34.5]} 40. Ng5
{[%clk 0:01:08.1]} 40... Qc5 {[%clk 0:00:26.4]} 41. Nxe6+ {[%clk 0:01:05.4]}
41... Bxe6 {[%clk 0:00:26.4]} 42. Qxe6 {[%clk 0:01:06.3]} 42... Qe3+ {[%clk
0:00:23.9]} 43. Bf3 {[%clk 0:01:04.7]} 43... Qe1+ {[%clk 0:00:22.6]} 44. Kg2
{[%clk 0:01:04.4]} 44... Qh1+ {[%clk 0:00:20.3]} 45. Kf2 {[%clk 0:01:01.7]}
45... Rh2+ {[%clk 0:00:20.6]} 46. Ke3 {[%clk 0:00:56.2]} 46... Qe1+ {[%clk
0:00:09.4]} 47. Kd4 {[%clk 0:00:56.3]} 47... Qf2+ {[%clk 0:00:09.3]} 48. Ke4
{[%clk 0:00:53]} 48... Qc5 {[%clk 0:00:06.4]} 49. Qf6+ {[%clk 0:00:49.5]} 49...
Kh7 {[%clk 0:00:05.1]} 50. Qf7+ {[%clk 0:00:49.2]} 50... Kh6 {[%clk 0:00:05.5]}
51. Qe8 {[%clk 0:00:43.5]} 51... Kh7 {[%clk 0:00:02.8]} 52. Qf7+ {[%clk
0:00:43.3]} 52... Kh6 {[%clk 0:00:03.3]} 53. Qe8 {[%clk 0:00:43.5]} 53... Kg7
{[%clk 0:00:03.8]} 54. Qd7+ {[%clk 0:00:43.3]} 54... Kf8 {[%clk 0:00:03.8]} 55.
Qd8+ {[%clk 0:00:35.4]} 55... Kf7 {[%clk 0:00:04]} 56. Qf6+ {[%clk 0:00:34.1]}
56... Ke8 {[%clk 0:00:03.9]} 57. Qxg6+ {[%clk 0:00:33.6]} 57... Kd8 {[%clk
0:00:04.6]} 58. Qf6+ {[%clk 0:00:30.9]} 58... Qe7 {[%clk 0:00:03.9]} 59. Qc6
{[%clk 0:00:28.6]} 59... Qd7 {[%clk 0:00:02.9]} 60. Qa8+ {[%clk 0:00:26.8]}
60... Ke7 {[%clk 0:00:03.1]} 61. Qg8 {[%clk 0:00:19.8]} 61... Qc6+ {[%clk
0:00:03.2]} 62. Ke3 {[%clk 0:00:19.9]} 62... Qc5+ {[%clk 0:00:03.2]} 63. Ke4
{[%clk 0:00:20.3]} 63... Qc6+ {[%clk 0:00:03.8]} 64. Ke3 {[%clk 0:00:20.7]}
64... Qb6+ {[%clk 0:00:04.5]} 65. Ke4 {[%clk 0:00:20.9]} 65... Qe6 {[%clk
0:00:04.1]} 66. Qg7+ {[%clk 0:00:20.1]} 66... Qf7 {[%clk 0:00:04.4]} 67. Qg5+
{[%clk 0:00:20.6]} 67... Ke8 {[%clk 0:00:04.7]} 68. f5 {[%clk 0:00:18.8]} 68...
Qb7+ {[%clk 0:00:04.1]} 69. Kf4 {[%clk 0:00:19.3]} 69... Qh7 {[%clk 0:00:02.7]}
70. Ke4 {[%clk 0:00:15.5]} 70... Qh4+ {[%clk 0:00:02.5]} 71. Qxh4 {[%clk
0:00:16]} 71... Rxh4+ {[%clk 0:00:03.4]} 72. Kd5 {[%clk 0:00:16.7]} 72... d2
{[%clk 0:00:03.4]} 73. Ke6 {[%clk 0:00:16.3]} 73... Rf4 {[%clk 0:00:02.6]} 74.
Bc6+ {[%clk 0:00:16]} 74... Kd8 {[%clk 0:00:02.7]} 75. Kf6 {[%clk 0:00:16.3]}
75... c3 {[%clk 0:00:02.8]} 76. e6 {[%clk 0:00:16.6]} 76... d1=Q {[%clk
0:00:02.8]} 77. e7+ {[%clk 0:00:16.8]} 77... Kc7 {[%clk 0:00:03.5]} 78. e8=Q
{[%clk 0:00:17.1]} 78... Qd6+ {[%clk 0:00:04.1]} 79. Kg5 {[%clk 0:00:17.4]}
79... Qxc6 {[%clk 0:00:04.6]} 80. Qe7+ {[%clk 0:00:15.6]} 80... Qd7 {[%clk
0:00:05.1]} 81. Qe5+ {[%clk 0:00:15.9]} 81... Qd6 {[%clk 0:00:05.3]} 82. Qxc3+
{[%clk 0:00:16.3]} 82... Kb7 {[%clk 0:00:04.3]} 83. Qb3+ {[%clk 0:00:15.4]}
83... Ka6 {[%clk 0:00:04.6]} 84. Qc3 {[%clk 0:00:05.6]} 84... Rd4 {[%clk
0:00:04.6]} 85. Qc8+ {[%clk 0:00:05.2]} 85... Kb6 {[%clk 0:00:04.7]} 86. Qe8
{[%clk 0:00:03.8]} 86... Qf4+ {[%clk 0:00:04.8]} 87. Kf6 {[%clk 0:00:04.1]}
87... Rd6+ {[%clk 0:00:05.2]} 88. Ke7 {[%clk 0:00:04.6]} 88... Qe5+ {[%clk
0:00:05.6]} 89. Kf7 {[%clk 0:00:05.1]} 89... Rf6+ {[%clk 0:00:05.8]} 90. Kg7
{[%clk 0:00:04.9]} 90... Qxe8 {[%clk 0:00:06.5]} 91. Kxf6 {[%clk 0:00:05.8]}
91... Qf8+ {[%clk 0:00:06.9]} 92. Ke5 {[%clk 0:00:06]} 92... Ka5 {[%clk
0:00:07.8]} 93. f6 {[%clk 0:00:06.9]} 93... Ka4 {[%clk 0:00:08.7]} 94. Ke6
{[%clk 0:00:07.6]} 94... Ka3 {[%clk 0:00:09.6]} 95. f7 {[%clk 0:00:08.5]} 95...
Kxa2 {[%clk 0:00:10.5]} 0-1

[Event "*** Titled Tuesday Blitz"]
[Site "Chess.com"]
[Date "2020.12.01"]
[Round "10"]
[White "DenLaz"]
[Black "Sviridov_Valery"]
[Result "1/2-1/2"]
[WhiteElo "2805"]
[BlackElo "2921"]
[TimeControl "180+1"]
[EndTime "11:57:22 PST"]
[Termination "Game drawn by stalemate"]

1. d4 {[%clk 0:03:00.9]} 1... g6 {[%clk 0:02:59.5]} 2. c4 {[%clk 0:03:00]} 2...
Bg7 {[%clk 0:02:59.8]} 3. Nc3 {[%clk 0:03:00.2]} 3... d6 {[%clk 0:03:00.2]} 4.
Nf3 {[%clk 0:02:59.8]} 4... e5 {[%clk 0:03:00.1]} 5. g3 {[%clk 0:03:00.2]} 5...
exd4 {[%clk 0:02:57.9]} 6. Nxd4 {[%clk 0:02:59.7]} 6... Nf6 {[%clk 0:02:58.8]}
7. Bg2 {[%clk 0:02:59.5]} 7... O-O {[%clk 0:02:59.4]} 8. O-O {[%clk 0:02:59.8]}
8... Re8 {[%clk 0:02:59.9]} 9. b3 {[%clk 0:02:50.8]} 9... Nbd7 {[%clk
0:02:59.3]} 10. Bb2 {[%clk 0:02:48.9]} 10... Nc5 {[%clk 0:02:58]} 11. Qc2 {[%clk
0:02:46.3]} 11... a5 {[%clk 0:02:57.5]} 12. Rad1 {[%clk 0:02:44]} 12... c6
{[%clk 0:02:57.4]} 13. e4 {[%clk 0:02:19.3]} 13... Qb6 {[%clk 0:02:56.5]} 14.
Nde2 {[%clk 0:02:04.4]} 14... a4 {[%clk 0:02:49.2]} 15. Nxa4 {[%clk 0:02:02.6]}
15... Nxa4 {[%clk 0:02:49]} 16. bxa4 {[%clk 0:02:03.5]} 16... Qb4 {[%clk
0:02:43.7]} 17. Bc3 {[%clk 0:01:48.8]} 17... Qa3 {[%clk 0:02:02.7]} 18. Qb3
{[%clk 0:01:23.5]} 18... Rxa4 {[%clk 0:01:48.1]} 19. Qxa3 {[%clk 0:00:49]} 19...
Rxa3 {[%clk 0:01:49]} 20. Rxd6 {[%clk 0:00:49.5]} 20... Nxe4 {[%clk 0:01:45.4]}
21. Bxe4 {[%clk 0:00:49.3]} 21... Bxc3 {[%clk 0:01:46]} 22. Nxc3 {[%clk
0:00:50.2]} 22... Rxc3 {[%clk 0:01:46.1]} 23. Bd3 {[%clk 0:00:50.8]} 23... Bh3
{[%clk 0:01:36.4]} 24. Rb1 {[%clk 0:00:48.8]} 24... Re7 {[%clk 0:01:30.2]} 25.
Rd4 {[%clk 0:00:25.1]} 25... Kg7 {[%clk 0:01:15.4]} 26. Rh4 {[%clk 0:00:22.6]}
26... Rxd3 {[%clk 0:01:03.3]} 27. Rxh3 {[%clk 0:00:22.1]} 27... Rd2 {[%clk
0:01:04]} 28. Rh4 {[%clk 0:00:14]} 28... Rxa2 {[%clk 0:01:01.8]} 29. Rf4 {[%clk
0:00:14.3]} 29... Rd2 {[%clk 0:00:53.5]} 30. h4 {[%clk 0:00:14]} 30... h5 {[%clk
0:00:53.8]} 31. Rf3 {[%clk 0:00:14.1]} 31... Rd4 {[%clk 0:00:52.8]} 32. Rc3
{[%clk 0:00:14.1]} 32... Red7 {[%clk 0:00:50.4]} 33. Kg2 {[%clk 0:00:13.9]}
33... Rd2 {[%clk 0:00:41]} 34. Rcb3 {[%clk 0:00:13]} 34... Rc2 {[%clk
0:00:39.9]} 35. Rxb7 {[%clk 0:00:12.2]} 35... Rxb7 {[%clk 0:00:40.8]} 36. Rxb7
{[%clk 0:00:12.7]} 36... Rxc4 {[%clk 0:00:41.7]} 37. Rc7 {[%clk 0:00:13.3]}
37... Rc3 {[%clk 0:00:40.5]} 38. Kf1 {[%clk 0:00:13.3]} 38... Rc2 {[%clk
0:00:39.1]} 39. Kg2 {[%clk 0:00:13.1]} 39... Rc3 {[%clk 0:00:37.4]} 40. Kf1
{[%clk 0:00:13.2]} 40... c5 {[%clk 0:00:38]} 41. Ke2 {[%clk 0:00:13.7]} 41...
Rc2+ {[%clk 0:00:38.6]} 42. Ke3 {[%clk 0:00:13.9]} 42... Kf6 {[%clk 0:00:39]}
43. Rc6+ {[%clk 0:00:13.7]} 43... Kf5 {[%clk 0:00:39.1]} 44. Rc7 {[%clk
0:00:13.6]} 44... Ke6 {[%clk 0:00:38.8]} 45. Rc6+ {[%clk 0:00:13.5]} 45... Kd7
{[%clk 0:00:38.5]} 46. Rf6 {[%clk 0:00:13.3]} 46... Ke7 {[%clk 0:00:38.6]} 47.
Rc6 {[%clk 0:00:13.8]} 47... c4 {[%clk 0:00:32.9]} 48. f3 {[%clk 0:00:11.3]}
48... Rc3+ {[%clk 0:00:30.6]} 49. Kf4 {[%clk 0:00:11.5]} 49... Kd7 {[%clk
0:00:27.5]} 50. Rf6 {[%clk 0:00:11]} 50... Ke7 {[%clk 0:00:26.4]} 51. Rc6 {[%clk
0:00:11]} 51... Rc1 {[%clk 0:00:16.2]} 52. Ke3 {[%clk 0:00:09.3]} 52... c3
{[%clk 0:00:15.7]} 53. Kd3 {[%clk 0:00:08.5]} 53... Rf1 {[%clk 0:00:15]} 54. Ke3
{[%clk 0:00:07.2]} 54... Rc1 {[%clk 0:00:15]} 55. Kd3 {[%clk 0:00:06.9]} 55...
Rg1 {[%clk 0:00:15.5]} 56. Rxc3 {[%clk 0:00:06.6]} 56... Rxg3 {[%clk 0:00:16]}
57. Ke3 {[%clk 0:00:07.2]} 57... Kf6 {[%clk 0:00:15.3]} 58. Kf2 {[%clk
0:00:05.2]} 58... Rh3 {[%clk 0:00:10.7]} 59. Rc4 {[%clk 0:00:05.5]} 59... Rh2+
{[%clk 0:00:10.3]} 60. Kg3 {[%clk 0:00:06]} 60... Ra2 {[%clk 0:00:11.2]} 61.
Rc6+ {[%clk 0:00:06.5]} 61... Kg7 {[%clk 0:00:11.6]} 62. Rc5 {[%clk 0:00:07.1]}
62... Ra4 {[%clk 0:00:11.9]} 63. Rd5 {[%clk 0:00:07.2]} 63... Ra6 {[%clk
0:00:12.3]} 64. Rd7 {[%clk 0:00:07.4]} 64... Re6 {[%clk 0:00:13.2]} 65. Rd4
{[%clk 0:00:07.7]} 65... Kf6 {[%clk 0:00:14.1]} 66. Rc4 {[%clk 0:00:08.3]} 66...
Re5 {[%clk 0:00:14.6]} 67. Rf4+ {[%clk 0:00:08.9]} 67... Rf5 {[%clk 0:00:14.7]}
68. Rc4 {[%clk 0:00:09.6]} 68... Kg7 {[%clk 0:00:15.6]} 69. Rc6 {[%clk
0:00:10.1]} 69... Ra5 {[%clk 0:00:16]} 70. Rc3 {[%clk 0:00:10.7]} 70... Rd5
{[%clk 0:00:16.4]} 71. Re3 {[%clk 0:00:10.9]} 71... Rd4 {[%clk 0:00:16.6]} 72.
Ra3 {[%clk 0:00:11.1]} 72... Rb4 {[%clk 0:00:16.8]} 73. Rc3 {[%clk 0:00:11.1]}
73... Rb7 {[%clk 0:00:17.1]} 74. Rc5 {[%clk 0:00:11.1]} 74... f6 {[%clk
0:00:17.4]} 75. Rc3 {[%clk 0:00:11.4]} 75... Re7 {[%clk 0:00:17.9]} 76. Rc5
{[%clk 0:00:11.4]} 76... Re5 {[%clk 0:00:18.3]} 77. Rc7+ {[%clk 0:00:11.6]}
77... Kh6 {[%clk 0:00:18]} 78. Rc6 {[%clk 0:00:12.2]} 78... Kg7 {[%clk
0:00:17.6]} 79. Rc7+ {[%clk 0:00:12.5]} 79... Kf8 {[%clk 0:00:18.1]} 80. Rc6
{[%clk 0:00:12.5]} 80... Kf7 {[%clk 0:00:19]} 81. Rc7+ {[%clk 0:00:12.8]} 81...
Re7 {[%clk 0:00:19.9]} 82. Rc6 {[%clk 0:00:12.9]} 82... g5 {[%clk 0:00:18.8]}
83. hxg5 {[%clk 0:00:11.9]} 83... fxg5 {[%clk 0:00:18.6]} 84. Rh6 {[%clk
0:00:12.3]} 84... h4+ {[%clk 0:00:16.4]} 85. Kg4 {[%clk 0:00:12.5]} 85... Kg7
{[%clk 0:00:15.3]} 86. Rh5 {[%clk 0:00:12]} 86... Re5 {[%clk 0:00:15.6]} 87. f4
{[%clk 0:00:10.8]} 87... Ra5 {[%clk 0:00:14.9]} 88. Rxg5+ {[%clk 0:00:09.3]}
88... Rxg5+ {[%clk 0:00:14.9]} 89. fxg5 {[%clk 0:00:10.2]} 89... Kg6 {[%clk
0:00:15.2]} 90. Kxh4 {[%clk 0:00:10.8]} 90... Kg7 {[%clk 0:00:16.1]} 91. Kh5
{[%clk 0:00:11.2]} 91... Kh7 {[%clk 0:00:16.3]} 92. Kg4 {[%clk 0:00:11.8]} 92...
Kg6 {[%clk 0:00:16.6]} 93. Kf4 {[%clk 0:00:12.2]} 93... Kg7 {[%clk 0:00:17]} 94.
Kf5 {[%clk 0:00:13.1]} 94... Kf7 {[%clk 0:00:17.4]} 95. g6+ {[%clk 0:00:13.6]}
95... Kg7 {[%clk 0:00:18]} 96. Kg5 {[%clk 0:00:14.2]} 96... Kg8 {[%clk
0:00:18.4]} 97. Kh5 {[%clk 0:00:14.9]} 97... Kg7 {[%clk 0:00:18.6]} 98. Kg5
{[%clk 0:00:15.6]} 98... Kg8 {[%clk 0:00:19]} 99. Kh6 {[%clk 0:00:15.9]} 99...
Kh8 {[%clk 0:00:19.3]} 100. g7+ {[%clk 0:00:16.7]} 100... Kg8 {[%clk 0:00:19.8]}
101. Kg6 {[%clk 0:00:17.6]} 1/2-1/2

[Event "*** Titled Tuesday Blitz"]
[Site "Chess.com"]
[Date "2020.12.01"]
[Round "10"]
[White "MPGM"]
[Black "Shuvalov"]
[Result "1/2-1/2"]
[WhiteElo "2642"]
[BlackElo "2453"]
[TimeControl "180+1"]
[EndTime "11:57:29 PST"]
[Termination "Game drawn by repetition"]

1. d4 {[%clk 0:03:00.9]} 1... d5 {[%clk 0:02:55.5]} 2. c4 {[%clk 0:03:01.3]}
2... c6 {[%clk 0:02:55.5]} 3. Nf3 {[%clk 0:03:01]} 3... Nf6 {[%clk 0:02:55.7]}
4. g3 {[%clk 0:03:01.6]} 4... Bf5 {[%clk 0:02:50.4]} 5. Nc3 {[%clk 0:03:01.7]}
5... e6 {[%clk 0:02:50.2]} 6. Nh4 {[%clk 0:03:02.4]} 6... Be4 {[%clk 0:02:48.9]}
7. f3 {[%clk 0:02:55.7]} 7... Bg6 {[%clk 0:02:48.3]} 8. e3 {[%clk 0:02:52.5]}
8... Nbd7 {[%clk 0:02:46.2]} 9. Kf2 {[%clk 0:02:43.3]} 9... Be7 {[%clk
0:02:39.1]} 10. b3 {[%clk 0:02:40.9]} 10... O-O {[%clk 0:02:33.8]} 11. Nxg6
{[%clk 0:02:40]} 11... fxg6 {[%clk 0:02:33.3]} 12. Kg2 {[%clk 0:02:40.4]} 12...
e5 {[%clk 0:02:31.1]} 13. cxd5 {[%clk 0:02:37.6]} 13... cxd5 {[%clk 0:02:29.3]}
14. Bb2 {[%clk 0:02:22.2]} 14... e4 {[%clk 0:02:24.5]} 15. fxe4 {[%clk
0:02:18.5]} 15... Nxe4 {[%clk 0:02:14.7]} 16. Nxe4 {[%clk 0:02:18]} 16... dxe4
{[%clk 0:02:15.6]} 17. Bc4+ {[%clk 0:02:18.2]} 17... Kh8 {[%clk 0:02:15.5]} 18.
Rf1 {[%clk 0:02:18.9]} 18... Nf6 {[%clk 0:02:14.3]} 19. Qe2 {[%clk 0:01:50.1]}
19... Nd5 {[%clk 0:02:11.4]} 20. Bxd5 {[%clk 0:01:47.4]} 20... Qxd5 {[%clk
0:02:10.9]} 21. Rxf8+ {[%clk 0:01:46.9]} 21... Rxf8 {[%clk 0:02:11.8]} 22. Rf1
{[%clk 0:01:47]} 22... Rf5 {[%clk 0:02:08.9]} 23. Qc4 {[%clk 0:01:38.9]} 23...
Qd7 {[%clk 0:02:02.3]} 24. Rf4 {[%clk 0:01:21.9]} 24... Rxf4 {[%clk 0:01:57]}
25. exf4 {[%clk 0:01:22.4]} 25... Qg4 {[%clk 0:01:51.8]} 26. Qf1 {[%clk
0:01:20.8]} 26... e3 {[%clk 0:01:47.1]} 27. Qf3 {[%clk 0:01:16.3]} 27... Qe6
{[%clk 0:01:41.9]} 28. Kf1 {[%clk 0:01:13.8]} 28... Qa6+ {[%clk 0:01:40.6]} 29.
Qe2 {[%clk 0:01:10.6]} 29... Qxa2 {[%clk 0:01:36.6]} 30. Qxe3 {[%clk 0:01:03.6]}
30... Qxb2 {[%clk 0:01:36]} 31. Qxe7 {[%clk 0:01:04.1]} 31... h6 {[%clk
0:01:34.6]} 32. Qe3 {[%clk 0:01:00.9]} 32... a5 {[%clk 0:01:27.4]} 33. Qd3
{[%clk 0:00:59.6]} 33... Qxh2 {[%clk 0:01:17.3]} 34. d5 {[%clk 0:00:59.7]} 34...
Qh1+ {[%clk 0:01:17.6]} 35. Ke2 {[%clk 0:00:58.8]} 35... Qg2+ {[%clk 0:01:16]}
36. Kd1 {[%clk 0:00:58.4]} 36... Qg1+ {[%clk 0:01:13.5]} 37. Kc2 {[%clk
0:00:57.9]} 37... Qc5+ {[%clk 0:01:13.2]} 38. Kb2 {[%clk 0:00:57.4]} 38... Qd6
{[%clk 0:01:13]} 39. Qe4 {[%clk 0:00:52.4]} 39... b5 {[%clk 0:01:04]} 40. Qd3
{[%clk 0:00:41.7]} 40... b4 {[%clk 0:00:52.1]} 41. Qb5 {[%clk 0:00:34.7]} 41...
Qf6+ {[%clk 0:00:51.5]} 42. Ka2 {[%clk 0:00:24.4]} 42... Qc3 {[%clk 0:00:49.5]}
43. Qe2 {[%clk 0:00:16.7]} 43... Qd4 {[%clk 0:00:46.8]} 44. Qg2 {[%clk
0:00:05.4]} 44... Qd3 {[%clk 0:00:44.6]} 45. Kb2 {[%clk 0:00:04.8]} 45... a4
{[%clk 0:00:41.7]} 46. bxa4 {[%clk 0:00:05]} 46... Qa3+ {[%clk 0:00:41.4]} 47.
Kb1 {[%clk 0:00:04.7]} 47... Qxa4 {[%clk 0:00:38.6]} 48. Qd2 {[%clk 0:00:03.4]}
48... Qb3+ {[%clk 0:00:37.7]} 49. Kc1 {[%clk 0:00:02.4]} 49... Qa3+ {[%clk
0:00:35.8]} 50. Kb1 {[%clk 0:00:01.6]} 50... Qb3+ {[%clk 0:00:31.5]} 51. Kc1
{[%clk 0:00:01.8]} 51... Qc4+ {[%clk 0:00:31.8]} 52. Kd1 {[%clk 0:00:02.2]}
52... b3 {[%clk 0:00:29.9]} 53. d6 {[%clk 0:00:02.4]} 53... Qf1+ {[%clk
0:00:29.6]} 54. Qe1 {[%clk 0:00:03]} 54... Qd3+ {[%clk 0:00:27.6]} 55. Qd2
{[%clk 0:00:03.3]} 55... Qf1+ {[%clk 0:00:25.6]} 56. Qe1 {[%clk 0:00:03.7]}
56... Qf3+ {[%clk 0:00:25.1]} 57. Qe2 {[%clk 0:00:03]} 57... Qxe2+ {[%clk
0:00:15.1]} 58. Kxe2 {[%clk 0:00:03.9]} 58... b2 {[%clk 0:00:15.7]} 59. d7
{[%clk 0:00:04.7]} 59... b1=Q {[%clk 0:00:15.9]} 60. d8=Q+ {[%clk 0:00:05.6]}
60... Kh7 {[%clk 0:00:16.3]} 61. Kf3 {[%clk 0:00:05.8]} 61... Qh1+ {[%clk
0:00:14]} 62. Kf2 {[%clk 0:00:06]} 62... Qh2+ {[%clk 0:00:13.9]} 63. Kf3 {[%clk
0:00:06.6]} 63... h5 {[%clk 0:00:13.5]} 64. Qg5 {[%clk 0:00:06]} 64... Qh1+
{[%clk 0:00:12.4]} 65. Kf2 {[%clk 0:00:06.6]} 65... Qh2+ {[%clk 0:00:12.6]} 66.
Kf3 {[%clk 0:00:06.9]} 66... Qh3 {[%clk 0:00:12.9]} 67. Kf2 {[%clk 0:00:07.2]}
67... Qf5 {[%clk 0:00:12.9]} 68. Qe7 {[%clk 0:00:06.9]} 68... Qf6 {[%clk
0:00:12.5]} 69. Qe3 {[%clk 0:00:06.7]} 69... Qb2+ {[%clk 0:00:12.2]} 70. Kg1
{[%clk 0:00:06.8]} 70... Qf6 {[%clk 0:00:10.8]} 71. Kg2 {[%clk 0:00:06.8]} 71...
Qf5 {[%clk 0:00:10.6]} 72. Qf3 {[%clk 0:00:06.4]} 72... Kh6 {[%clk 0:00:08.2]}
73. Qe3 {[%clk 0:00:06.3]} 73... g5 {[%clk 0:00:07.9]} 74. Qb6+ {[%clk
0:00:04.9]} 74... Kh7 {[%clk 0:00:05.9]} 75. fxg5 {[%clk 0:00:05.8]} 75... Qxg5
{[%clk 0:00:06.2]} 76. Qf2 {[%clk 0:00:05.9]} 76... Qg4 {[%clk 0:00:06.1]} 77.
Kh2 {[%clk 0:00:06]} 77... Qg5 {[%clk 0:00:05.7]} 78. Qe1 {[%clk 0:00:06.4]}
78... Qg6 {[%clk 0:00:05.9]} 79. Qf2 {[%clk 0:00:06.9]} 79... Qf6 {[%clk
0:00:04.9]} 80. Qe2 {[%clk 0:00:06.5]} 80... Kh6 {[%clk 0:00:04.8]} 81. Qe1
{[%clk 0:00:06.5]} 81... g5 {[%clk 0:00:04.2]} 82. Qe2 {[%clk 0:00:06.1]} 82...
Qd6 {[%clk 0:00:02.3]} 83. Kg2 {[%clk 0:00:05.4]} 83... Qf6 {[%clk 0:00:02.5]}
84. Kh2 {[%clk 0:00:05.6]} 84... h4 {[%clk 0:00:01.9]} 85. gxh4 {[%clk
0:00:05.7]} 85... Qf4+ {[%clk 0:00:02.5]} 86. Kg2 {[%clk 0:00:05.5]} 86... gxh4
{[%clk 0:00:02.1]} 87. Qe6+ {[%clk 0:00:05.9]} 87... Kg5 {[%clk 0:00:02]} 88.
Qg8+ {[%clk 0:00:06.3]} 88... Kh5 {[%clk 0:00:01.7]} 89. Qh7+ {[%clk 0:00:06.7]}
89... Kg5 {[%clk 0:00:02.6]} 90. Qg7+ {[%clk 0:00:06.9]} 90... Kh5 {[%clk
0:00:02.9]} 91. Qh8+ {[%clk 0:00:07.4]} 91... Kg4 {[%clk 0:00:02.6]} 92. Qg8+
{[%clk 0:00:08.1]} 92... Qg5 {[%clk 0:00:02.7]} 93. Qe6+ {[%clk 0:00:08.8]}
93... Kh5+ {[%clk 0:00:02.8]} 94. Kh1 {[%clk 0:00:09.2]} 94... Qc1+ {[%clk
0:00:02]} 95. Kh2 {[%clk 0:00:09.2]} 95... Qd2+ {[%clk 0:00:02.3]} 96. Kh1
{[%clk 0:00:09.7]} 96... Qc1+ {[%clk 0:00:02.6]} 97. Kh2 {[%clk 0:00:09.7]}
97... Qd2+ {[%clk 0:00:02.7]} 98. Kh1 {[%clk 0:00:10.1]} 98... Qc1+ {[%clk
0:00:03.1]} 1/2-1/2